bitfinex-derivatives/quotes_SOLF0:USTF0_20240930
["timestamp","ask_amount","ask_price","bid_price","bid_amount"]
[1727686333028,7.85,156.6,156.56,3.1931]
[1727686333326,7.85,156.6,156.55,7.85]
[1727686333529,7.85,156.6,156.55,11.0433]
[1727686335429,2.5175,156.64,156.56,7.85]
[1727686335629,7.85,156.6,156.53,0.12502]
[1727686335824,7.85,156.6,156.55,7.85]
[1727686336014,7.85,156.59,156.53,7.97502]
[1727686336823,7.85,156.59,156.54,11.0434]
[1727686337723,7.85,156.59,156.55,3.1933]
[1727686338128,7.85,156.59,156.54,7.85]
[1727686338331,7.85,156.59,156.53,7.97502]
[1727686340131,2.5175,156.64,156.54,7.85]
[1727686340329,7.85,156.6,156.54,7.85]
[1727686340634,7.85,156.59,156.53,7.97502]
[1727686341222,7.85,156.59,156.54,3.1934]
[1727686345337,2.5175,156.64,156.55,3.1933]
[1727686345627,7.85,156.6,156.55,3.1933]
[1727686346230,2.5175,156.64,156.56,7.85]
[1727686346534,7.85,156.62,156.56,11.043]
[1727686348541,7.85,156.6,156.53,0.12502]
[1727686348741,7.85,156.6,156.55,3.1932]
[1727686349541,7.85,156.59,156.53,3.31872]
[1727686349748,7.85,156.59,156.53,11.16872]
[1727686350239,7.85,156.59,156.54,3.1935]
[1727686350434,7.85,156.59,156.53,0.12502]
[1727686350634,7.85,156.59,156.53,7.97502]
[1727686350840,7.85,156.56,156.53,0.12502]
[1727686351041,1.2977,156.58,156.53,0.12502]
[1727686351042,7.85,156.54,156.53,0.12502]
[1727686363850,7.85,156.54,156.47,11.16992]
[1727686364041,7.85,156.52,156.47,11.16992]
[1727686365961,1.2521,156.57,156.49,3.1945]
[1727686365962,7.85,156.54,156.49,3.1945]
[1727686366743,7.85,156.54,156.48,7.85]
[1727686366950,7.85,156.54,156.5,3.1943]
[1727686371344,7.85,156.55,156.51,3.194]
[1727686379058,7.85,156.55,156.5,7.85]
[1727686379059,1.2977,156.58,156.53,7.85]
[1727686379261,1.2977,156.58,156.54,7.85]
[1727686380364,9.1477,156.58,156.54,11.0434]
[1727686380563,9.1477,156.58,156.54,7.85]
[1727686381170,9.1477,156.58,156.48,7.16286971]
[1727686381171,9.1477,156.58,156.53,7.85]
[1727686382167,9.1477,156.58,156.53,11.0436]
[1727686382567,9.1477,156.58,156.54,7.85]
[1727686382767,9.1477,156.58,156.54,11.0435]
[1727686384866,0.12502,156.59,156.54,7.85]
[1727686385073,0.12502,156.59,156.57,7.85]
[1727686385468,0.12502,156.59,156.58,3.1927]
[1727686385673,0.12502,156.59,156.58,11.0427]
[1727686387873,0.12502,156.65,156.61,3.192]
[1727686388078,0.12502,156.65,156.62,7.85]
[1727686388669,0.12502,156.65,156.63,7.85]
[1727686389169,0.12502,156.65,156.62,7.85]
[1727686390079,0.12502,156.65,156.62,11.0419]
[1727686391572,0.12502,156.65,156.55,7.14587747]
[1727686391770,0.12502,156.65,156.62,7.85]
[1727686393379,0.12502,156.65,156.62,11.0419]
[1727686393771,0.12502,156.65,156.64,7.85]
[1727686395069,0.12502,156.65,156.64,11.0415]
[1727686395873,0.12502,156.65,156.62,3.17502759]
[1727686396068,0.12502,156.65,156.64,7.85]
[1727686397078,0.12502,156.71,156.64,7.85]
[1727686397279,0.12502,156.71,156.69,7.85]
[1727686399973,0.12502,156.71,156.66,3.26541617]
[1727686399974,0.12502,156.71,156.62,1.2641]
[1727686400382,7.85,156.68,156.62,7.85]
[1727686400686,7.85,156.66,156.61,7.85]
[1727686401792,7.85,156.66,156.6,11.0423]
[1727686402281,7.85,156.66,156.6,7.85]
[1727686402476,7.85,156.66,156.61,11.0421]
[1727686403796,7.85,156.66,156.61,7.85]
[1727686404089,1.3357,156.67,156.61,7.85]
[1727686404292,9.1857,156.67,156.61,7.85]
[1727686404583,9.1857,156.67,156.61,11.042]
[1727686404788,9.1857,156.67,156.61,7.85]
[1727686405385,9.1857,156.67,156.61,11.0421]
[1727686406996,9.1857,156.67,156.62,3.1919]
[1727686407181,9.1857,156.67,156.61,7.85]
[1727686407791,9.1857,156.67,156.61,11.042]
[1727686408190,9.1857,156.67,156.61,7.85]
[1727686409191,9.1857,156.67,156.61,11.042]
[1727686409690,1.3357,156.67,156.63,11.0417]
[1727686409896,1.3357,156.67,156.64,7.85]
[1727686410593,1.3357,156.67,156.64,11.0414]
[1727686411099,1.3357,156.67,156.59,0.12502]
[1727686411288,1.3357,156.67,156.63,11.0417]
[1727686411488,1.3357,156.67,156.63,7.85]
[1727686412092,1.3357,156.67,156.64,3.1914]
[1727686412993,3.589,156.7,156.65,7.85]
[1727686413190,11.439,156.7,156.65,11.0413]
[1727686413794,2.589,156.7,156.66,11.0411]
[1727686414100,0.12502,156.71,156.66,7.85]
[1727686414499,0.12502,156.71,156.66,11.0409]
[1727686415007,0.12502,156.71,156.66,7.85]
[1727686415201,0.12502,156.71,156.69,7.85]
[1727686417503,0.12502,156.71,156.69,11.0404]
[1727686418097,0.12502,156.71,156.67,11.0408]
[1727686418313,7.85,156.7,156.63,2.6555]
[1727686418499,7.85,156.7,156.59,0.12502]
[1727686418500,7.85,156.7,156.64,7.85]
[1727686418897,7.85,156.7,156.65,11.0411]
[1727686419105,7.97502,156.71,156.65,11.0411]
[1727686419400,0.12502,156.71,156.67,7.85]
[1727686419906,7.97502,156.71,156.65,7.85]
[1727686420811,7.97502,156.71,156.65,11.0412]
[1727686421003,7.85,156.7,156.61,1.2814]
[1727686421199,7.85,156.69,156.63,7.85]
[1727686421531,7.85,156.69,156.63,11.0416]
[1727686422009,7.85,156.69,156.64,3.1915]
[1727686422204,1.2485,156.68,156.63,7.85]
[1727686422607,1.2485,156.68,156.63,11.0416]
[1727686422908,1.2485,156.68,156.65,7.85]
[1727686424299,1.2485,156.68,156.65,11.0413]
[1727686428312,1.2485,156.68,156.65,7.85]
[1727686428506,7.97502,156.71,156.66,11.041]
[1727686428706,7.97502,156.71,156.66,7.85]
[1727686429719,7.97502,156.71,156.66,11.0411]
[1727686431720,0.12502,156.71,156.66,11.0411]
[1727686431914,7.97502,156.71,156.66,11.0411]
[1727686434610,0.12502,156.71,156.66,11.0411]
[1727686434917,0.12502,156.71,156.66,3.1911]
[1727686435124,0.12502,156.71,156.66,11.0411]
[1727686436116,0.12502,156.71,156.67,3.1909]
[1727686436616,0.12502,156.71,156.66,11.041]
[1727686438025,7.97502,156.71,156.66,7.85]
[1727686438628,0.12502,156.71,156.69,7.85]
[1727686440227,0.12502,156.71,156.68,3.1906]
[1727686440434,0.12502,156.71,156.66,7.85]
[1727686442631,0.12502,156.71,156.66,11.0411]
[1727686445932,0.12502,156.71,156.66,7.85]
[1727686446129,7.85,156.7,156.66,7.85]
[1727686446330,7.85,156.7,156.62,1.2315]
[1727686446526,7.85,156.7,156.66,7.85]
[1727686450137,7.85,156.7,156.66,11.0411]
[1727686450342,0.12502,156.71,156.68,7.85]
[1727686450640,0.12502,156.71,156.68,11.0405]
[1727686454542,0.12502,156.71,156.7,7.85]
[1727686457052,0.12502,156.71,156.7,11.0403]
[1727686459553,0.12502,156.71,156.7,3.1903]
[1727686459849,0.12502,156.71,156.7,11.0403]
[1727686460046,0.12502,156.71,156.7,3.1903]
[1727686460245,0.12502,156.71,156.7,7.85]
[1727686462453,0.12502,156.71,156.7,11.0403]
[1727686462748,0.12502,156.71,156.7,7.85]
[1727686463550,0.12502,156.71,156.7,11.0403]
[1727686464357,0.12502,156.71,156.7,7.85]
[1727686467349,0.12502,156.71,156.7,11.0403]
[1727686480869,0.12502,156.71,156.7,7.85]
[1727686481763,0.12502,156.71,156.63,18.62749666]
[1727686482066,0.12502,156.71,156.68,7.85]
[1727686482664,0.12502,156.71,156.62,70.1715]
[1727686482665,0.12502,156.71,156.7,7.85]
[1727686489469,0.12502,156.71,156.62,1.2315]
[1727686489470,0.12502,156.71,156.69,7.85]
[1727686491762,0.12502,156.71,156.62,1.2315]
[1727686491967,0.12502,156.71,156.68,7.85]
[1727686495274,7.85,156.7,156.62,1.2315]
[1727686495784,9.1568,156.7,156.61,3.24668979]
[1727686495989,9.1568,156.7,156.64,7.85]
[1727686496166,7.85,156.69,156.64,7.85]
[1727686504277,7.85,156.69,156.64,11.0415]
[1727686505187,3.9442,156.7,156.67,7.85]
[1727686505389,1.3068,156.7,156.68,7.85]
[1727686508184,0.12502,156.71,156.68,7.85]
[1727686508386,0.12502,156.71,156.7,3.1903]
[1727686508791,1.2445,156.75,156.69,7.85]
[1727686508995,1.2445,156.75,156.74,7.85]
[1727686509485,0.12502,156.77,156.74,7.85]
[1727686510489,0.12502,156.77,156.75,7.85]
[1727686514692,0.12502,156.77,156.76,7.85]
[1727686516794,0.12502,156.77,156.73,3.1897]
[1727686516993,0.12502,156.77,156.74,7.85]
[1727686521499,0.12502,156.77,156.76,7.85]
[1727686528998,0.12502,156.77,156.73,3.1897]
[1727686529215,0.12502,156.77,156.74,7.85]
[1727686530401,0.12502,156.77,156.75,7.85]
[1727686531902,0.12502,156.77,156.69,59.89836231]
[1727686532109,0.12502,156.77,156.74,7.85]
[1727686535802,0.12502,156.77,156.69,59.89836231]
[1727686536007,0.12502,156.77,156.74,7.85]
[1727686540505,0.12502,156.77,156.72,3.1898]
[1727686540506,0.12502,156.77,156.69,59.89836231]
[1727686540704,0.12502,156.77,156.71,7.85]
[1727686540912,7.85,156.76,156.71,7.85]
[1727686542613,0.12502,156.77,156.73,7.85]
[1727686544306,0.12502,156.77,156.74,7.85]
[1727686546216,0.12502,156.77,156.72,3.1897]
[1727686546525,0.12502,156.77,156.73,7.85]
[1727686552520,0.12502,156.77,156.76,7.85]
[1727686552819,0.12502,156.77,156.75,7.85]
[1727686553025,0.12502,156.77,156.73,7.85]
[1727686553716,7.85,156.76,156.7,7.85]
[1727686554614,7.85,156.76,156.7,11.0402]
[1727686557529,7.85,156.76,156.7,7.85]
[1727686557930,0.12502,156.77,156.69,70.93876231]
[1727686557931,7.85,156.74,156.69,70.93876231]
[1727686558628,7.85,156.75,156.69,70.93876231]
[1727686560720,7.85,156.75,156.69,67.74836231]
[1727686560919,7.85,156.75,156.69,59.89836231]
[1727686563317,10.5257,156.76,156.71,7.85]
[1727686564931,10.5257,156.76,156.69,3.1905]
[1727686565227,7.85,156.75,156.69,7.85]
[1727686565929,7.85,156.75,156.69,11.0405]
[1727686566927,7.85,156.75,156.68,3.1905]
[1727686567129,7.85,156.75,156.69,7.85]
[1727686567724,10.5257,156.76,156.69,3.1903]
[1727686567923,10.5257,156.76,156.7,7.85]
[1727686568541,7.85,156.74,156.68,3.1906]
[1727686568721,7.85,156.74,156.69,7.85]
[1727686569725,7.85,156.74,156.69,11.0405]
[1727686570324,2.6757,156.76,156.71,7.85]
[1727686570526,10.5257,156.76,156.71,7.85]
[1727686570731,9.1739,156.76,156.71,7.85]
[1727686570934,7.85,156.76,156.71,7.85]
[1727686571129,0.12502,156.77,156.72,7.85]
[1727686571531,0.12502,156.77,156.73,7.85]
[1727686576843,0.12502,156.77,156.75,7.85]
[1727686584645,0.12502,156.77,156.72,3.1898]
[1727686584842,0.12502,156.77,156.73,7.85]
[1727686585738,0.12502,156.77,156.73,11.0396]
[1727686587142,0.12502,156.77,156.73,7.85]
[1727686587639,0.12502,156.77,156.73,11.0396]
[1727686589447,0.12502,156.77,156.74,3.1894]
[1727686589842,0.12502,156.77,156.75,7.85]
[1727686590446,0.12502,156.77,156.74,3.1894]
[1727686590650,0.12502,156.77,156.75,7.85]
[1727686594248,0.12502,156.77,156.74,7.85]
[1727686595249,0.12502,156.77,156.74,11.0395]
[1727686596655,0.12502,156.77,156.75,11.0393]
[1727686596953,0.12502,156.77,156.75,7.85]
[1727686597554,0.12502,156.77,156.74,7.85]
[1727686598760,0.12502,156.77,156.74,11.0394]
[1727686599264,0.12502,156.77,156.75,11.0392]
[1727686600965,0.12502,156.77,156.73,3.13366247]
[1727686601162,0.12502,156.77,156.75,7.85]
[1727686601361,0.12502,156.77,156.74,3.1893]
[1727686601562,0.12502,156.77,156.75,7.85]
[1727686602262,0.12502,156.77,156.75,11.0391]
[1727686602865,0.12502,156.77,156.76,11.0391]
[1727686610380,0.12502,156.77,156.76,7.85]
[1727686611693,0.12502,156.77,156.74,4.54860564]
[1727686611883,0.12502,156.77,156.76,7.85]
[1727686614092,0.12502,156.77,156.76,11.0391]
[1727686620491,0.12502,156.77,156.76,3.1891]
[1727686620692,0.12502,156.77,156.76,11.0391]
[1727686626595,0.12502,156.77,156.76,3.1891]
[1727686626805,0.12502,156.77,156.72,3.1897]
[1727686627004,0.12502,156.77,156.75,7.85]
[1727686627490,0.12502,156.77,156.75,11.0391]
[1727686628805,0.12502,156.77,156.76,7.85]
[1727686629301,0.12502,156.77,156.75,7.85]
[1727686629497,0.12502,156.77,156.74,3.1894]
[1727686629498,0.12502,156.77,156.71,1.2587]
[1727686629704,0.12502,156.77,156.74,7.85]
[1727686632000,0.12502,156.77,156.75,7.85]
[1727686633302,0.12502,156.77,156.75,11.0391]
[1727686634698,0.12502,156.77,156.73,3.1896]
[1727686634906,0.12502,156.77,156.74,7.85]
[1727686635604,0.12502,156.77,156.74,11.0394]
[1727686640117,0.12502,156.77,156.74,7.85]
[1727686641714,0.12502,156.77,156.74,11.0395]
[1727686649716,7.44933706,156.8,156.76,7.85]
[1727686649922,7.44933706,156.8,156.78,7.85]
[1727686650820,7.44933706,156.8,156.76,11.0389]
[1727686652022,7.44933706,156.8,156.77,11.0388]
[1727686654118,7.44933706,156.8,156.79,7.85]
[1727686657722,7.44933706,156.8,156.79,11.0385]
[1727686660826,7.44933706,156.8,156.78,11.0386]
[1727686662614,7.44933706,156.8,156.78,3.1886]
[1727686662923,7.44933706,156.8,156.79,7.85]
[1727686668928,7.44933706,156.8,156.79,11.0385]
[1727686670533,7.44933706,156.8,156.78,3.1886]
[1727686670730,7.44933706,156.8,156.79,7.85]
[1727686672437,7.44933706,156.8,156.78,3.1886]
[1727686672630,7.44933706,156.8,156.79,7.85]
[1727686678837,7.44933706,156.8,156.73,4.48743446]
[1727686678838,7.44933706,156.8,156.77,7.85]
[1727686679038,7.44933706,156.8,156.73,1.251]
[1727686679234,7.44933706,156.8,156.77,7.85]
[1727686679436,7.44933706,156.8,156.75,3.1891]
[1727686679635,7.44933706,156.8,156.76,7.85]
[1727686680257,7.85,156.79,156.72,1.3342]
[1727686680438,7.85,156.78,156.71,0.12502]
[1727686680642,7.85,156.78,156.73,15.60054431]
[1727686681541,7.85,156.78,156.73,7.85]
[1727686682044,7.85,156.78,156.74,7.75054431]
[1727686682231,7.85,156.78,156.73,11.0395]
[1727686684232,7.85,156.77,156.71,3.31502]
[1727686684437,7.85,156.77,156.71,11.16502]
[1727686687248,7.85,156.76,156.71,0.12502]
[1727686687639,7.85,156.74,156.71,0.12502]
[1727686687840,7.85,156.73,156.71,0.12502]
[1727686689361,1.2374,156.72,156.66,3.191]
[1727686689539,7.85,156.69,156.65,0.12502]
[1727686691343,3.2288466,156.7,156.65,7.97502]
[1727686691652,11.0788466,156.7,156.65,7.97502]
[1727686692543,7.85,156.69,156.65,7.97502]
[1727686694350,7.85,156.69,156.65,0.12502]
[1727686695554,7.85,156.67,156.65,0.12502]
[1727686695751,7.85,156.66,156.65,0.12502]
[1727686696153,7.85,156.66,156.59,3.31742]
[1727686696349,7.85,156.64,156.59,11.16742]
[1727686696545,7.85,156.64,156.59,0.12502]
[1727686698458,1.2555,156.65,156.59,0.12502]
[1727686698459,7.85,156.63,156.59,0.12502]
[1727686698959,7.85,156.61,156.59,0.12502]
[1727686699140,1.3256,156.64,156.53,0.12502]
[1727686699141,7.85,156.6,156.53,0.12502]
[1727686699345,3.13116104,156.62,156.53,0.12502]
[1727686699346,7.85,156.57,156.53,0.12502]
[1727686699755,3.13116104,156.62,156.53,0.12502]
[1727686699756,7.85,156.58,156.53,3.31872]
[1727686699950,3.13116104,156.62,156.53,3.31872]
[1727686700167,7.85,156.59,156.53,3.31872]
[1727686700457,7.85,156.59,156.54,11.0435]
[1727686701050,1.0,156.61,156.56,7.85]
[1727686701357,4.24863643,156.61,156.56,7.85]
[1727686701551,1.0,156.61,156.56,7.85]
[1727686702151,4.18152905,156.61,156.56,7.85]
[1727686702547,4.18152905,156.61,156.55,3.1933]
[1727686702780,4.18152905,156.61,156.56,7.85]
[1727686702949,1.0,156.61,156.56,7.85]
[1727686703160,1.0,156.61,156.56,11.043]
[1727686705561,1.3256,156.64,156.59,7.85]
[1727686706851,1.3256,156.64,156.59,11.0424]
[1727686707064,1.3256,156.64,156.61,7.85]
[1727686709061,1.38052,156.65,156.61,7.85]
[1727686710468,1.38052,156.65,156.61,11.0421]
[1727686711171,1.38052,156.65,156.61,7.85]
[1727686714064,9.23052,156.65,156.59,7.85]
[1727686714766,9.23052,156.65,156.59,11.0424]
[1727686715667,9.23052,156.65,156.59,7.85]
[1727686715865,9.23052,156.65,156.6,3.1923]
[1727686716063,9.23052,156.65,156.61,7.85]
[1727686716364,1.38052,156.65,156.61,7.85]
[1727686716763,1.38052,156.65,156.61,11.0421]
[1727686717069,0.12502,156.65,156.62,7.85]
[1727686717670,0.12502,156.65,156.63,7.85]
[1727686722869,0.12502,156.65,156.62,7.85]
[1727686730678,0.12502,156.65,156.63,7.85]
[1727686730880,0.12502,156.65,156.64,7.85]
[1727686735074,0.12502,156.65,156.59,2.5521]
[1727686735275,0.12502,156.65,156.61,7.85]
[1727686736187,0.12502,156.65,156.61,11.042]
[1727686738784,0.12502,156.65,156.6,3.1923]
[1727686738988,0.12502,156.65,156.6,7.85]
[1727686739184,0.12502,156.65,156.61,7.85]
[1727686740593,0.12502,156.65,156.58,59.94178234]
[1727686740782,0.12502,156.65,156.59,7.85]
[1727686740983,0.12502,156.65,156.59,11.0424]
[1727686741190,7.97502,156.65,156.59,11.0424]
[1727686742686,7.85,156.64,156.59,11.0424]
[1727686742886,0.12502,156.65,156.58,70.98448234]
[1727686742887,7.85,156.62,156.58,70.98448234]
[1727686743391,7.85,156.62,156.58,67.79178234]
[1727686745894,7.85,156.62,156.58,70.98448234]
[1727686746591,7.85,156.62,156.58,59.94178234]
[1727686747188,7.85,156.61,156.54,1.3503]
[1727686747488,9.1905,156.61,156.54,7.85]
[1727686747689,7.85,156.59,156.55,3.1932]
[1727686748596,9.1905,156.61,156.54,7.85]
[1727686748801,9.1905,156.61,156.56,11.0431]
[1727686749401,1.3405,156.61,156.56,11.0431]
[1727686750102,1.3405,156.61,156.57,11.0427]
[1727686750301,1.3405,156.61,156.57,7.85]
[1727686750496,11.00275439,156.63,156.57,7.85]
[1727686750710,7.97502,156.65,156.6,7.85]
[1727686751999,0.12502,156.65,156.6,7.85]
[1727686752305,7.97502,156.65,156.6,7.85]
[1727686755290,7.97502,156.65,156.6,11.0423]
[1727686755505,0.12502,156.65,156.61,7.85]
[1727686756795,7.97502,156.65,156.6,7.85]
[1727686757301,7.97502,156.65,156.59,3.1925]
[1727686757498,7.85,156.64,156.59,3.1925]
[1727686759015,7.85,156.64,156.58,7.85]
[1727686759305,0.12502,156.65,156.52,7.93457804]
[1727686759306,7.85,156.61,156.54,15.53094173]
[1727686759511,7.85,156.61,156.55,28.04156004]
[1727686759703,7.85,156.61,156.56,10.95898463]
[1727686759895,7.85,156.61,156.55,7.85]
[1727686760096,7.85,156.61,156.56,7.76686379]
[1727686760316,7.85,156.61,156.55,11.0432]
[1727686760507,7.85,156.61,156.56,7.76755842]
[1727686760701,7.85,156.61,156.55,11.0432]
[1727686761005,7.85,156.61,156.55,7.85]
[1727686761195,7.85,156.61,156.57,3.1929]
[1727686764614,7.85,156.61,156.56,3.193]
[1727686764907,4.55958778,156.62,156.56,3.193]
[1727686765111,7.85,156.61,156.56,7.85]
[1727686765614,7.85,156.61,156.56,11.043]
[1727686770430,7.85,156.61,156.57,7.77154455]
[1727686770634,7.85,156.61,156.56,11.043]
[1727686770832,7.85,156.61,156.57,7.77149722]
[1727686771030,7.85,156.61,156.56,11.043]
[1727686771420,7.85,156.61,156.57,7.77199723]
[1727686771623,7.85,156.61,156.56,11.043]
[1727686779246,7.85,156.61,156.55,11.0432]
[1727686779838,7.85,156.6,156.55,11.0432]
[1727686781243,7.85,156.6,156.55,7.85]
[1727686781434,7.85,156.6,156.56,3.1931]
[1727686781637,7.85,156.6,156.56,10.88158667]
[1727686781839,4.55958778,156.62,156.52,63.15715849]
[1727686781840,7.85,156.59,156.52,63.15715849]
[1727686782149,7.85,156.57,156.52,67.81335849]
[1727686782442,7.85,156.57,156.53,3.31862]
[1727686784846,7.85,156.57,156.53,0.12502]
[1727686785238,7.85,156.56,156.53,0.12502]
[1727686787945,23.70958778,156.62,156.53,0.12502]
[1727686788152,7.85,156.58,156.53,0.12502]
[1727686790945,7.85,156.57,156.53,0.12502]
[1727686792245,7.85,156.55,156.53,0.12502]
[1727686796244,1.0,156.61,156.53,0.12502]
[1727686796444,7.85,156.57,156.53,0.12502]
[1727686797549,1.0,156.61,156.53,0.12502]
[1727686797550,7.85,156.56,156.53,0.12502]
[1727686797747,7.85,156.54,156.53,0.12502]
[1727686800954,11.08893713,156.54,156.45,7.85]
[1727686801151,7.85,156.51,156.45,7.85]
[1727686801553,7.85,156.51,156.46,3.1951]
[1727686801951,10.97740392,156.51,156.46,3.1951]
[1727686802351,7.85,156.52,156.47,7.97502]
[1727686802557,1.2788,156.53,156.48,7.85]
[1727686803053,9.1288,156.53,156.47,7.97502]
[1727686804047,1.0,156.55,156.5,7.85]
[1727686805350,3.1937,156.54,156.5,11.0442]
[1727686805581,7.85,156.52,156.47,0.12502]
[1727686806357,3.1942,156.51,156.47,0.12502]
[1727686806756,3.22505818,156.53,156.47,0.12502]
[1727686806962,11.0441,156.52,156.47,3.31992]
[1727686807457,11.0441,156.52,156.47,0.12502]
[1727686807659,11.0437,156.54,156.47,7.97502]
[1727686807848,7.85,156.54,156.49,7.85]
[1727686808156,8.85,156.55,156.5,3.1942]
[1727686808363,12.0435,156.55,156.5,3.1942]
[1727686808672,1.0,156.55,156.5,7.85]
[1727686809051,4.1935,156.55,156.5,11.0443]
[1727686811461,12.0435,156.55,156.5,11.0443]
[1727686812863,3.1936,156.54,156.5,11.0443]
[1727686813166,8.85,156.55,156.49,11.0444]
[1727686813361,7.85,156.53,156.47,7.97502]
[1727686813563,11.0441,156.52,156.47,7.97502]
[1727686813753,11.0441,156.52,156.47,11.16992]
[1727686813956,7.85,156.52,156.47,3.31992]
[1727686815263,3.1942,156.51,156.47,3.31992]
[1727686818955,3.1942,156.51,156.48,3.1948]
[1727686819664,3.194,156.52,156.49,3.1946]
[1727686819965,1.296,156.53,156.48,7.85]
[1727686820763,9.146,156.53,156.47,7.97502]
[1727686821263,3.1944,156.51,156.47,3.31992]
[1727686821566,7.85,156.52,156.47,3.31992]
[1727686821969,3.1945,156.5,156.47,0.12502]
[1727686822563,11.0445,156.5,156.47,0.12502]
[1727686822959,7.85,156.52,156.47,3.31992]
[1727686823161,7.85,156.52,156.47,0.12502]
[1727686823671,7.85,156.52,156.47,3.31992]
[1727686825866,7.85,156.52,156.47,0.12502]
[1727686829966,3.1944,156.5,156.47,0.12502]
[1727686834364,3.1944,156.5,156.47,3.31992]
[1727686836074,1.296,156.53,156.47,0.12502]
[1727686836368,3.1942,156.51,156.48,3.1946]
[1727686841685,3.1936,156.54,156.5,7.85]
[1727686842483,7.85,156.54,156.5,7.85]
[1727686842686,7.85,156.54,156.5,11.0442]
[1727686843178,7.85,156.52,156.47,0.12502]
[1727686843386,7.85,156.52,156.48,3.1947]
[1727686844479,7.85,156.52,156.49,3.1946]
[1727686848790,7.85,156.52,156.47,3.31992]
[1727686849679,7.85,156.51,156.47,3.31992]
[1727686850679,7.85,156.49,156.47,0.12502]
[1727686851278,7.85,156.48,156.47,0.12502]
[1727686851889,7.85,156.49,156.47,0.12502]
[1727686853188,1.3044,156.52,156.47,0.12502]
[1727686853387,7.85,156.5,156.47,0.12502]
[1727686854681,1.3044,156.52,156.47,0.12502]
[1727686854986,7.85,156.51,156.47,0.12502]
[1727686855395,7.85,156.51,156.47,7.97502]
[1727686855920,7.85,156.51,156.47,11.17002]
[1727686858799,7.85,156.51,156.47,3.32002]
[1727686859685,7.85,156.51,156.47,0.12502]
[1727686860299,3.1948,156.48,156.47,0.12502]
[1727686860492,1.3044,156.52,156.47,0.12502]
[1727686860792,2.618,156.53,156.49,7.85]
[1727686860793,1.2812,156.53,156.49,7.85]
[1727686861000,1.2812,156.53,156.5,3.1942]
[1727686861298,1.2812,156.53,156.49,7.85]
[1727686861608,1.2812,156.53,156.49,11.0445]
[1727686862295,1.2503,156.57,156.52,7.85]
[1727686863700,9.1003,156.57,156.52,7.85]
[1727686863896,7.85,156.55,156.51,7.85]
[1727686864103,7.85,156.54,156.48,7.85]
[1727686864434,7.85,156.53,156.48,7.85]
[1727686864590,3.1941,156.52,156.48,7.85]
[1727686864797,7.85,156.51,156.47,0.12502]
[1727686864996,11.0443,156.51,156.47,0.12502]
[1727686865400,3.1943,156.51,156.47,7.97502]
[1727686865602,3.1943,156.51,156.47,11.16982]
[1727686865806,3.1944,156.5,156.47,7.97502]
[1727686866204,7.85,156.53,156.47,3.32002]
[1727686866409,3.1942,156.51,156.47,3.32002]